[Event "*** Titled Tuesday Blitz"]
[Site "Chess.com"]
[Date "2021.03.09"]
[Round "9"]
[White "mapleaff"]
[Black "grandcoach"]
[Result "1-0"]
[WhiteElo "2403"]
[BlackElo "2250"]
[TimeControl "180+1"]
[EndTime "11:48:53 PST"]
[Termination "mapleaff won on time"]

1. e4 {[%clk 0:02:58.8]} 1... c5 {[%clk 0:02:58.7]} 2. Nf3 {[%clk 0:02:58.7]}
2... Nc6 {[%clk 0:02:59.1]} 3. Bb5 {[%clk 0:02:56.1]} 3... e6 {[%clk 0:02:58]}
4. O-O {[%clk 0:02:55.2]} 4... Nge7 {[%clk 0:02:57.6]} 5. d4 {[%clk 0:02:55.5]}
5... cxd4 {[%clk 0:02:49.7]} 6. Nxd4 {[%clk 0:02:56.4]} 6... a6 {[%clk 0:02:50]}
7. Nxc6 {[%clk 0:02:54.1]} 7... bxc6 {[%clk 0:02:36.9]} 8. Bd3 {[%clk
0:02:53.4]} 8... d5 {[%clk 0:02:35.5]} 9. Nd2 {[%clk 0:02:52.2]} 9... g6 {[%clk
0:02:31.1]} 10. Qe2 {[%clk 0:02:43.5]} 10... Bg7 {[%clk 0:02:30.8]} 11. c3
{[%clk 0:02:42.8]} 11... O-O {[%clk 0:02:30.2]} 12. Rd1 {[%clk 0:02:41]} 12...
Qc7 {[%clk 0:02:27.7]} 13. Nf3 {[%clk 0:02:39.5]} 13... a5 {[%clk 0:02:04.2]}
14. e5 {[%clk 0:02:38.1]} 14... c5 {[%clk 0:01:58.2]} 15. Bg5 {[%clk 0:02:37.9]}
15... c4 {[%clk 0:01:56.6]} 16. Bc2 {[%clk 0:02:37.4]} 16... Rb8 {[%clk
0:01:56.6]} 17. Rab1 {[%clk 0:02:34.4]} 17... Nc6 {[%clk 0:01:55.1]} 18. Re1
{[%clk 0:02:24.9]} 18... f6 {[%clk 0:01:18.9]} 19. exf6 {[%clk 0:02:20.4]} 19...
Bxf6 {[%clk 0:01:19.5]} 20. Bxf6 {[%clk 0:02:19.8]} 20... Rxf6 {[%clk
0:01:20.4]} 21. Ba4 {[%clk 0:02:08.6]} 21... Bd7 {[%clk 0:01:08.3]} 22. Bxc6
{[%clk 0:02:01.5]} 22... Bxc6 {[%clk 0:01:09.2]} 23. Nd4 {[%clk 0:02:00.1]}
23... Bd7 {[%clk 0:01:06.5]} 24. g3 {[%clk 0:01:52.1]} 24... Rbf8 {[%clk
0:01:04.6]} 25. f4 {[%clk 0:01:51.5]} 25... h6 {[%clk 0:00:49]} 26. Qe5 {[%clk
0:01:47.9]} 26... Qxe5 {[%clk 0:00:46.5]} 27. Rxe5 {[%clk 0:01:48.8]} 27... Kg7
{[%clk 0:00:42]} 28. Rbe1 {[%clk 0:01:42.4]} 28... Rb8 {[%clk 0:00:33]} 29. R1e2
{[%clk 0:01:32.5]} 29... Rb6 {[%clk 0:00:32.6]} 30. h4 {[%clk 0:01:29.5]} 30...
a4 {[%clk 0:00:18.3]} 31. a3 {[%clk 0:01:26]} 31... Kh7 {[%clk 0:00:15.3]} 32.
Kf2 {[%clk 0:01:20.6]} 32... Kg7 {[%clk 0:00:12.4]} 33. Ke1 {[%clk 0:01:20]}
33... Kf7 {[%clk 0:00:11.3]} 34. Kd2 {[%clk 0:01:20]} 34... Rd6 {[%clk
0:00:07.8]} 35. Kc1 {[%clk 0:01:16.6]} 35... Rb6 {[%clk 0:00:07.5]} 36. Nc2
{[%clk 0:01:07.4]} 36... Bc8 {[%clk 0:00:04]} 37. Nb4 {[%clk 0:01:06.7]} 37...
Bd7 {[%clk 0:00:04]} 38. Nxd5 {[%clk 0:01:05.7]} 38... exd5 {[%clk 0:00:03.7]}
39. Re7+ {[%clk 0:01:06.1]} 39... Kg8 {[%clk 0:00:03.1]} 40. Rxd7 {[%clk
0:01:07]} 40... Rbe6 {[%clk 0:00:02.7]} 41. Rxe6 {[%clk 0:00:55]} 41... Rxe6
{[%clk 0:00:03.6]} 42. Rxd5 {[%clk 0:00:55.8]} 42... Re3 {[%clk 0:00:04]} 43.
Rd4 {[%clk 0:00:56.3]} 43... Rxg3 {[%clk 0:00:03.9]} 44. Rxc4 {[%clk 0:00:56.8]}
44... Rg1+ {[%clk 0:00:03.4]} 45. Kc2 {[%clk 0:00:56.7]} 45... Rg2+ {[%clk
0:00:04]} 46. Kb1 {[%clk 0:00:57.1]} 46... Rg1+ {[%clk 0:00:04.2]} 47. Ka2
{[%clk 0:00:56.8]} 47... Rg4 {[%clk 0:00:04.7]} 48. Rxa4 {[%clk 0:00:56.5]}
48... Rxh4 {[%clk 0:00:04.4]} 49. Rd4 {[%clk 0:00:54.5]} 49... g5 {[%clk
0:00:03.7]} 50. fxg5 {[%clk 0:00:54.5]} 50... hxg5 {[%clk 0:00:04.6]} 51. Rd5
{[%clk 0:00:53.9]} 51... g4 {[%clk 0:00:03.5]} 52. a4 {[%clk 0:00:52.6]} 52...
Kf7 {[%clk 0:00:04.4]} 53. a5 {[%clk 0:00:45.1]} 53... Ke6 {[%clk 0:00:05]} 54.
Rg5 {[%clk 0:00:44.6]} 54... Kf6 {[%clk 0:00:05.2]} 55. Rd5 {[%clk 0:00:44.6]}
55... Rh7 {[%clk 0:00:03.4]} 56. b4 {[%clk 0:00:41.5]} 56... g3 {[%clk
0:00:02.9]} 57. Rd1 {[%clk 0:00:41.5]} 57... g2 {[%clk 0:00:02.7]} 58. Rg1
{[%clk 0:00:41.6]} 58... Rg7 {[%clk 0:00:02.7]} 59. Kb3 {[%clk 0:00:41.4]} 59...
Ke5 {[%clk 0:00:03.1]} 60. b5 {[%clk 0:00:40.3]} 60... Kd5 {[%clk 0:00:02.8]}
61. Kb4 {[%clk 0:00:40.5]} 61... Rg4+ {[%clk 0:00:01.4]} 62. Kb3 {[%clk
0:00:39.1]} 62... Kc5 {[%clk 0:00:01.3]} 63. c4 {[%clk 0:00:38.9]} 1-0

[Event "*** Titled Tuesday Blitz"]
[Site "Chess.com"]
[Date "2021.03.09"]
[Round "9"]
[White "Deepweb2020"]
[Black "Ladislav1969"]
[Result "1-0"]
[WhiteElo "2474"]
[BlackElo "2334"]
[TimeControl "180+1"]
[EndTime "11:48:55 PST"]
[Termination "Deepweb2020 won on time"]

1. d4 {[%clk 0:03:00.9]} 1... Nf6 {[%clk 0:02:59.3]} 2. c4 {[%clk 0:02:56.8]}
2... g6 {[%clk 0:02:59.7]} 3. Nf3 {[%clk 0:02:55.1]} 3... Bg7 {[%clk 0:02:58.9]}
4. g3 {[%clk 0:02:55]} 4... d5 {[%clk 0:02:57.3]} 5. cxd5 {[%clk 0:02:55.9]}
5... Nxd5 {[%clk 0:02:57.6]} 6. Nc3 {[%clk 0:02:54.9]} 6... Nb6 {[%clk
0:02:56.2]} 7. Bg2 {[%clk 0:02:53.7]} 7... Nc6 {[%clk 0:02:56.4]} 8. e3 {[%clk
0:02:53.1]} 8... O-O {[%clk 0:02:55.6]} 9. O-O {[%clk 0:02:52.9]} 9... Re8
{[%clk 0:02:55.7]} 10. Nh4 {[%clk 0:02:52]} 10... e5 {[%clk 0:02:43.5]} 11. d5
{[%clk 0:02:50.5]} 11... Na5 {[%clk 0:02:36.2]} 12. Rb1 {[%clk 0:02:49]} 12...
Bd7 {[%clk 0:02:24]} 13. Qc2 {[%clk 0:02:41.9]} 13... c6 {[%clk 0:02:17.9]} 14.
Rd1 {[%clk 0:02:29]} 14... cxd5 {[%clk 0:02:11.4]} 15. Nxd5 {[%clk 0:02:24.6]}
15... Rc8 {[%clk 0:02:01]} 16. Qe2 {[%clk 0:02:16.3]} 16... Nxd5 {[%clk
0:01:47.9]} 17. Bxd5 {[%clk 0:02:11]} 17... Qc7 {[%clk 0:01:42.4]} 18. b4 {[%clk
0:01:53.2]} 18... Nc6 {[%clk 0:01:36.7]} 19. Nf3 {[%clk 0:01:40.3]} 19... Bg4
{[%clk 0:01:18.6]} 20. h3 {[%clk 0:01:01.5]} 20... Bxh3 {[%clk 0:01:03.6]} 21.
Ng5 {[%clk 0:00:59]} 21... Be6 {[%clk 0:01:04.2]} 22. Bxe6 {[%clk 0:00:57.1]}
22... fxe6 {[%clk 0:01:04.1]} 23. b5 {[%clk 0:00:45.5]} 23... Na5 {[%clk
0:01:03.1]} 24. Ba3 {[%clk 0:00:44.6]} 24... Nc4 {[%clk 0:00:56]} 25. Bb4 {[%clk
0:00:37.3]} 25... e4 {[%clk 0:00:49.4]} 26. Nxe4 {[%clk 0:00:29.6]} 26... Qe5
{[%clk 0:00:46.7]} 27. Rd4 {[%clk 0:00:13.6]} 27... Qxb5 {[%clk 0:00:32.8]} 28.
Nc3 {[%clk 0:00:09.7]} 28... Qa6 {[%clk 0:00:27]} 29. Rdd1 {[%clk 0:00:08]}
29... Na3 {[%clk 0:00:23.2]} 30. Qxa6 {[%clk 0:00:05.7]} 30... bxa6 {[%clk
0:00:22.7]} 31. Bxa3 {[%clk 0:00:04.8]} 31... Rxc3 {[%clk 0:00:21]} 32. Bb2
{[%clk 0:00:04]} 32... Rc2 {[%clk 0:00:21.2]} 33. Bxg7 {[%clk 0:00:04.5]} 33...
Kxg7 {[%clk 0:00:21.5]} 34. Rb7+ {[%clk 0:00:05.4]} 34... Kf6 {[%clk 0:00:20.5]}
35. Rxa7 {[%clk 0:00:03.7]} 35... Rxa2 {[%clk 0:00:17.9]} 36. Rxh7 {[%clk
0:00:04.1]} 36... Kg5 {[%clk 0:00:17.1]} 37. Kg2 {[%clk 0:00:03.8]} 37... Rf8
{[%clk 0:00:16.9]} 38. Rf1 {[%clk 0:00:02.8]} 38... a5 {[%clk 0:00:16.4]} 39.
Re7 {[%clk 0:00:03.1]} 39... Rf6 {[%clk 0:00:14.9]} 40. Ra7 {[%clk 0:00:03.1]}
40... a4 {[%clk 0:00:14.8]} 41. Ra5+ {[%clk 0:00:02.9]} 41... Kh6 {[%clk
0:00:14.2]} 42. g4 {[%clk 0:00:02.8]} 42... Kg7 {[%clk 0:00:13.8]} 43. Kg3
{[%clk 0:00:02.4]} 43... a3 {[%clk 0:00:12.6]} 44. f4 {[%clk 0:00:02.6]} 44...
Rf7 {[%clk 0:00:11.4]} 45. Rb1 {[%clk 0:00:02.1]} 45... Rd7 {[%clk 0:00:10.9]}
46. Rb3 {[%clk 0:00:02.4]} 46... Rdd2 {[%clk 0:00:09.6]} 47. Raxa3 {[%clk
0:00:02.9]} 47... Rg2+ {[%clk 0:00:07.7]} 48. Kf3 {[%clk 0:00:02.5]} 48... Raf2+
{[%clk 0:00:06.6]} 49. Ke4 {[%clk 0:00:02.9]} 49... Rxg4 {[%clk 0:00:07.5]} 50.
Rb7+ {[%clk 0:00:02.4]} 1-0

[Event "*** Titled Tuesday Blitz"]
[Site "Chess.com"]
[Date "2021.03.09"]
[Round "9"]
[White "FormerProdigy"]
[Black "mikolka1985"]
[Result "1-0"]
[WhiteElo "2845"]
[BlackElo "2693"]
[TimeControl "180+1"]
[EndTime "11:48:59 PST"]
[Termination "FormerProdigy won on time"]

1. e4 {[%clk 0:03:00.9]} 1... e5 {[%clk 0:02:59]} 2. Nf3 {[%clk 0:03:00.8]} 2...
Nc6 {[%clk 0:02:59]} 3. Bb5 {[%clk 0:03:00.5]} 3... a6 {[%clk 0:02:58.3]} 4. Ba4
{[%clk 0:03:00.8]} 4... Nf6 {[%clk 0:02:58.4]} 5. O-O {[%clk 0:03:01]} 5... Be7
{[%clk 0:02:58.5]} 6. Re1 {[%clk 0:03:01.2]} 6... b5 {[%clk 0:02:58.4]} 7. Bb3
{[%clk 0:03:01.5]} 7... d6 {[%clk 0:02:58.7]} 8. c3 {[%clk 0:02:59.4]} 8... O-O
{[%clk 0:02:58.6]} 9. h3 {[%clk 0:02:59.1]} 9... Na5 {[%clk 0:02:58.5]} 10. Bc2
{[%clk 0:02:59.3]} 10... c5 {[%clk 0:02:58.5]} 11. d4 {[%clk 0:02:59.5]} 11...
Nd7 {[%clk 0:02:58.7]} 12. Nbd2 {[%clk 0:02:52.7]} 12... exd4 {[%clk 0:02:57.8]}
13. cxd4 {[%clk 0:02:53.6]} 13... Nc6 {[%clk 0:02:58]} 14. d5 {[%clk 0:02:47.3]}
14... Nce5 {[%clk 0:02:55.5]} 15. a4 {[%clk 0:02:43.6]} 15... Bb7 {[%clk
0:02:55.3]} 16. Nh2 {[%clk 0:02:36.5]} 16... Ng6 {[%clk 0:02:51.1]} 17. Ndf1
{[%clk 0:02:33.6]} 17... Bg5 {[%clk 0:02:50.3]} 18. g3 {[%clk 0:02:25.4]} 18...
Bxc1 {[%clk 0:02:48.4]} 19. Qxc1 {[%clk 0:02:20.5]} 19... Re8 {[%clk 0:02:43.7]}
20. f4 {[%clk 0:02:08.3]} 20... Qb6 {[%clk 0:02:10.8]} 21. Qe3 {[%clk
0:01:59.1]} 21... Bxd5 {[%clk 0:02:06.3]} 22. Rad1 {[%clk 0:01:32.3]} 22... Bb7
{[%clk 0:02:02.5]} 23. a5 {[%clk 0:01:27.5]} 23... Qc7 {[%clk 0:01:57.6]} 24.
Qd2 {[%clk 0:01:26.1]} 24... Nf6 {[%clk 0:01:55.1]} 25. Qxd6 {[%clk 0:01:22]}
25... Qxd6 {[%clk 0:01:48.8]} 26. Rxd6 {[%clk 0:01:22.9]} 26... Bxe4 {[%clk
0:01:43.7]} 27. Rxf6 {[%clk 0:01:10.1]} 27... gxf6 {[%clk 0:00:59.8]} 28. Rxe4
{[%clk 0:00:46.7]} 28... c4 {[%clk 0:00:57.4]} 29. Ng4 {[%clk 0:00:45.7]} 29...
Kg7 {[%clk 0:00:56.3]} 30. Nfe3 {[%clk 0:00:41.9]} 30... Rxe4 {[%clk 0:00:51.4]}
31. Bxe4 {[%clk 0:00:41.8]} 31... Rd8 {[%clk 0:00:49.4]} 32. Kf1 {[%clk
0:00:21.3]} 32... Ne7 {[%clk 0:00:48.1]} 33. Ke2 {[%clk 0:00:19.4]} 33... h5
{[%clk 0:00:39.2]} 34. Nh2 {[%clk 0:00:19.2]} 34... Rd6 {[%clk 0:00:38.1]} 35.
Nf3 {[%clk 0:00:18.8]} 35... Re6 {[%clk 0:00:36.2]} 36. Nd2 {[%clk 0:00:15.6]}
36... f5 {[%clk 0:00:35.2]} 37. Bb7 {[%clk 0:00:11.7]} 37... h4 {[%clk
0:00:28.3]} 38. Kf3 {[%clk 0:00:08.5]} 38... hxg3 {[%clk 0:00:27.5]} 39. Ndf1
{[%clk 0:00:09.2]} 39... g2 {[%clk 0:00:23.3]} 40. Kxg2 {[%clk 0:00:07.6]} 40...
Rg6+ {[%clk 0:00:14.8]} 41. Ng3 {[%clk 0:00:06.4]} 41... Kf8 {[%clk 0:00:12.8]}
42. Kf3 {[%clk 0:00:06.3]} 42... Rh6 {[%clk 0:00:12]} 43. Ngxf5 {[%clk
0:00:04.9]} 43... Nxf5 {[%clk 0:00:10.5]} 44. Nxf5 {[%clk 0:00:05.8]} 44...
Rxh3+ {[%clk 0:00:11.1]} 45. Ng3 {[%clk 0:00:06.4]} 45... Rh6 {[%clk 0:00:10]}
46. f5 {[%clk 0:00:04.8]} 46... Ke7 {[%clk 0:00:08.8]} 47. Ne4 {[%clk
0:00:04.1]} 47... Kd8 {[%clk 0:00:08.5]} 48. f6 {[%clk 0:00:03.8]} 48... Kc7
{[%clk 0:00:07.4]} 49. Bxa6 {[%clk 0:00:04]} 49... Kc6 {[%clk 0:00:07.8]} 50.
Bc8 {[%clk 0:00:04]} 50... Rh2 {[%clk 0:00:07.1]} 51. a6 {[%clk 0:00:03.6]}
51... Kb6 {[%clk 0:00:06.9]} 52. Be6 {[%clk 0:00:02.8]} 52... fxe6 {[%clk
0:00:05.2]} 53. f7 {[%clk 0:00:02.8]} 53... Rh8 {[%clk 0:00:05.6]} 54. Nf6
{[%clk 0:00:03]} 54... Kxa6 {[%clk 0:00:04.3]} 55. Ng8 {[%clk 0:00:03]} 55...
Rh1 {[%clk 0:00:02.1]} 56. Kg2 {[%clk 0:00:02.5]} 1-0

[Event "*** Titled Tuesday Blitz"]
[Site "Chess.com"]
[Date "2021.03.09"]
[Round "9"]
[White "Jospem"]
[Black "NikolaGry"]
[Result "1-0"]
[WhiteElo "2930"]
[BlackElo "2664"]
[TimeControl "180+1"]
[EndTime "11:49:01 PST"]
[Termination "Jospem won on time"]

1. e4 {[%clk 0:02:59.3]} 1... c5 {[%clk 0:02:57]} 2. Nf3 {[%clk 0:02:53.2]} 2...
Nf6 {[%clk 0:02:56.3]} 3. Nc3 {[%clk 0:02:48.8]} 3... Nc6 {[%clk 0:02:54.9]} 4.
Bb5 {[%clk 0:02:44.5]} 4... e6 {[%clk 0:02:54]} 5. O-O {[%clk 0:02:43.4]} 5...
Be7 {[%clk 0:02:53.8]} 6. d3 {[%clk 0:02:41.9]} 6... O-O {[%clk 0:02:52.7]} 7.
Bxc6 {[%clk 0:02:39.6]} 7... bxc6 {[%clk 0:02:52.4]} 8. h3 {[%clk 0:02:37.6]}
8... Ne8 {[%clk 0:02:50.7]} 9. Qe2 {[%clk 0:02:30.7]} 9... f6 {[%clk 0:02:50.1]}
10. Na4 {[%clk 0:02:27.9]} 10... d6 {[%clk 0:02:36.5]} 11. b3 {[%clk 0:02:27.3]}
11... e5 {[%clk 0:02:35.1]} 12. Ne1 {[%clk 0:02:25.8]} 12... f5 {[%clk
0:02:33.5]} 13. f4 {[%clk 0:02:20.1]} 13... exf4 {[%clk 0:02:29.8]} 14. Bxf4
{[%clk 0:02:21]} 14... g5 {[%clk 0:01:58.8]} 15. Bd2 {[%clk 0:02:18]} 15... f4
{[%clk 0:01:56.1]} 16. c4 {[%clk 0:01:50.1]} 16... Bf6 {[%clk 0:01:42.8]} 17.
Bc3 {[%clk 0:01:45.2]} 17... Ng7 {[%clk 0:01:39.3]} 18. Qd2 {[%clk 0:01:39.3]}
18... Ne6 {[%clk 0:01:33.5]} 19. Nc2 {[%clk 0:01:38.6]} 19... g4 {[%clk
0:00:53]} 20. hxg4 {[%clk 0:01:33.5]} 20... Bh4 {[%clk 0:00:53]} 21. Rf3 {[%clk
0:01:15]} 21... Bg3 {[%clk 0:00:51.1]} 22. Rxg3 {[%clk 0:01:15.4]} 22... fxg3
{[%clk 0:00:51.1]} 23. Qh6 {[%clk 0:01:16.3]} 23... Qg5 {[%clk 0:00:46]} 24.
Qxg5+ {[%clk 0:01:16.4]} 24... Nxg5 {[%clk 0:00:46]} 25. Be1 {[%clk 0:01:17.3]}
25... Bxg4 {[%clk 0:00:42.5]} 26. Bxg3 {[%clk 0:01:17.8]} 26... Rad8 {[%clk
0:00:35]} 27. Re1 {[%clk 0:01:15.8]} 27... Ne6 {[%clk 0:00:29.2]} 28. Ne3 {[%clk
0:01:09.6]} 28... h5 {[%clk 0:00:28.8]} 29. Nc3 {[%clk 0:00:59.6]} 29... Rf7
{[%clk 0:00:22.6]} 30. Ncd1 {[%clk 0:00:56.4]} 30... Bxd1 {[%clk 0:00:19]} 31.
Rxd1 {[%clk 0:00:56.1]} 31... Nd4 {[%clk 0:00:18.8]} 32. Kh2 {[%clk 0:00:49.6]}
32... Kh7 {[%clk 0:00:15.2]} 33. Re1 {[%clk 0:00:38.4]} 33... Kg6 {[%clk
0:00:14.7]} 34. Bh4 {[%clk 0:00:37.9]} 34... Re8 {[%clk 0:00:13.1]} 35. Bg3
{[%clk 0:00:38.3]} 35... Rd8 {[%clk 0:00:13]} 36. Kh3 {[%clk 0:00:38.9]} 36...
a5 {[%clk 0:00:12]} 37. Bh4 {[%clk 0:00:36.7]} 37... Re8 {[%clk 0:00:11.5]} 38.
Bg3 {[%clk 0:00:37.3]} 38... Rd8 {[%clk 0:00:11.3]} 39. Nd1 {[%clk 0:00:33.5]}
39... Ne6 {[%clk 0:00:09.1]} 40. Kh2 {[%clk 0:00:32.5]} 40... h4 {[%clk
0:00:08.4]} 41. Bxh4 {[%clk 0:00:24]} 41... Rh7 {[%clk 0:00:07.9]} 42. g3 {[%clk
0:00:24.8]} 42... Rf8 {[%clk 0:00:07.2]} 43. Kg2 {[%clk 0:00:24.3]} 43... Nd4
{[%clk 0:00:07.3]} 44. Ne3 {[%clk 0:00:19.4]} 44... Nf3 {[%clk 0:00:06.8]} 45.
Rh1 {[%clk 0:00:18.5]} 45... Nxh4+ {[%clk 0:00:06.4]} 46. gxh4 {[%clk
0:00:19.4]} 46... Kh5 {[%clk 0:00:06.2]} 47. Nf5 {[%clk 0:00:19.9]} 47... Rhf7
{[%clk 0:00:04.6]} 48. Kg3 {[%clk 0:00:16.6]} 48... Rg8+ {[%clk 0:00:03.6]} 49.
Kf4 {[%clk 0:00:17.2]} 49... Rg4+ {[%clk 0:00:03.5]} 50. Kf3 {[%clk 0:00:17.3]}
50... Rg8 {[%clk 0:00:03.5]} 51. a4 {[%clk 0:00:15.1]} 51... Rg6 {[%clk
0:00:03.6]} 52. Kf4 {[%clk 0:00:14.5]} 52... Rff6 {[%clk 0:00:03.8]} 53. Ke3
{[%clk 0:00:13.1]} 53... Rf7 {[%clk 0:00:03.9]} 54. Rh3 {[%clk 0:00:12.6]} 54...
Rff6 {[%clk 0:00:04]} 55. Rh2 {[%clk 0:00:12.7]} 55... Rf7 {[%clk 0:00:04.2]}
56. Kd2 {[%clk 0:00:13.4]} 56... Rff6 {[%clk 0:00:04.4]} 57. Kc3 {[%clk
0:00:14.1]} 57... Rf7 {[%clk 0:00:04.6]} 58. Rh1 {[%clk 0:00:14.8]} 58... Rff6
{[%clk 0:00:04.9]} 59. Rf1 {[%clk 0:00:15.5]} 59... Kg4 {[%clk 0:00:02.7]} 60.
Rf2 {[%clk 0:00:11.8]} 60... Kh5 {[%clk 0:00:02.6]} 61. Rf4 {[%clk 0:00:12.4]}
1-0

[Event "*** Titled Tuesday Blitz"]
[Site "Chess.com"]
[Date "2021.03.09"]
[Round "9"]
[White "poneis_malditos"]
[Black "guillembaches"]
[Result "1-0"]
[WhiteElo "2349"]
[BlackElo "2450"]
[TimeControl "180+1"]
[EndTime "11:49:03 PST"]
[Termination "poneis_malditos won on time"]

1. e4 {[%clk 0:03:00.9]} 1... c5 {[%clk 0:03:00]} 2. Nc3 {[%clk 0:02:59.7]} 2...
Nc6 {[%clk 0:02:58.6]} 3. g3 {[%clk 0:03:00.2]} 3... g6 {[%clk 0:02:58.2]} 4.
Bg2 {[%clk 0:03:01.1]} 4... Bg7 {[%clk 0:02:58.7]} 5. d3 {[%clk 0:03:01.2]} 5...
e6 {[%clk 0:02:58.9]} 6. Be3 {[%clk 0:03:01.8]} 6... Nd4 {[%clk 0:02:57.5]} 7.
Qd2 {[%clk 0:03:01.3]} 7... Ne7 {[%clk 0:02:55]} 8. Nd1 {[%clk 0:03:01.8]} 8...
e5 {[%clk 0:02:49.9]} 9. c3 {[%clk 0:03:02]} 9... Ne6 {[%clk 0:02:50.1]} 10. Bh6
{[%clk 0:03:01.2]} 10... d5 {[%clk 0:02:35.9]} 11. Bxg7 {[%clk 0:02:54.8]} 11...
Nxg7 {[%clk 0:02:36.8]} 12. Qh6 {[%clk 0:02:54.5]} 12... Ne6 {[%clk 0:02:34.5]}
13. Ne3 {[%clk 0:02:49]} 13... d4 {[%clk 0:02:09.9]} 14. Nd5 {[%clk 0:02:42.3]}
14... Nxd5 {[%clk 0:01:58.4]} 15. exd5 {[%clk 0:02:43.2]} 15... dxc3 {[%clk
0:01:57.7]} 16. bxc3 {[%clk 0:02:34.5]} 16... Qa5 {[%clk 0:01:49.1]} 17. Ne2
{[%clk 0:02:26.8]} 17... Nd4 {[%clk 0:01:24.9]} 18. Nxd4 {[%clk 0:02:25.7]}
18... Qxc3+ {[%clk 0:01:20.3]} 19. Ke2 {[%clk 0:01:54.9]} 19... Qxd4 {[%clk
0:01:20.4]} 20. Rhe1 {[%clk 0:01:52.6]} 20... Bg4+ {[%clk 0:01:11.2]} 21. Kf1
{[%clk 0:01:45.2]} 21... O-O-O {[%clk 0:01:04.9]} 22. Rac1 {[%clk 0:01:33.1]}
22... Kb8 {[%clk 0:00:57.2]} 23. Kg1 {[%clk 0:01:30.5]} 23... Rhe8 {[%clk
0:00:52.9]} 24. Qxh7 {[%clk 0:01:26.3]} 24... Rd7 {[%clk 0:00:43.2]} 25. Rc4
{[%clk 0:01:10.2]} 25... Qb2 {[%clk 0:00:14]} 26. Rxg4 {[%clk 0:01:08.8]} 26...
Qd2 {[%clk 0:00:14.6]} 27. Rf1 {[%clk 0:00:58.6]} 27... Qxd3 {[%clk 0:00:11.1]}
28. Qh6 {[%clk 0:00:55.5]} 28... c4 {[%clk 0:00:09.6]} 29. Qc1 {[%clk 0:00:50]}
29... c3 {[%clk 0:00:07.6]} 30. Rd1 {[%clk 0:00:42.3]} 30... Qe2 {[%clk
0:00:07.3]} 31. Re4 {[%clk 0:00:39.5]} 31... Qxa2 {[%clk 0:00:06.7]} 32. Qxc3
{[%clk 0:00:37.9]} 32... f5 {[%clk 0:00:05.7]} 33. Rb4 {[%clk 0:00:35.3]} 33...
Rc8 {[%clk 0:00:05.3]} 34. Qb2 {[%clk 0:00:34.5]} 34... Qa6 {[%clk 0:00:04.4]}
35. d6 {[%clk 0:00:33.5]} 35... e4 {[%clk 0:00:04.5]} 36. Bf1 {[%clk 0:00:29.2]}
36... Qa5 {[%clk 0:00:04.2]} 37. Rb5 {[%clk 0:00:25.8]} 37... Qa4 {[%clk
0:00:04.4]} 38. Qb3 {[%clk 0:00:24.4]} 38... Qxb3 {[%clk 0:00:02.6]} 39. Rxb3
{[%clk 0:00:25.3]} 39... b6 {[%clk 0:00:03]} 40. Bb5 {[%clk 0:00:23.7]} 40...
Rdd8 {[%clk 0:00:03.4]} 41. d7 {[%clk 0:00:22.8]} 41... Rc5 {[%clk 0:00:04.1]}
42. Ba6 {[%clk 0:00:21.8]} 42... Kc7 {[%clk 0:00:04.5]} 43. Bc8 {[%clk
0:00:21.6]} 43... a5 {[%clk 0:00:04.4]} 44. Rdb1 {[%clk 0:00:18.6]} 44... g5
{[%clk 0:00:04.7]} 45. Rxb6 {[%clk 0:00:17.9]} 45... f4 {[%clk 0:00:05.2]} 46.
Rb7+ {[%clk 0:00:17.8]} 46... Kd6 {[%clk 0:00:05.7]} 47. R1b6+ {[%clk
0:00:18.1]} 47... Ke5 {[%clk 0:00:05.7]} 48. Ra6 {[%clk 0:00:18]} 48... Rc1+
{[%clk 0:00:04.3]} 49. Kg2 {[%clk 0:00:15.9]} 49... e3 {[%clk 0:00:04.3]} 50.
Kf3 {[%clk 0:00:15.4]} 50... fxg3 {[%clk 0:00:03.5]} 51. hxg3 {[%clk 0:00:13.5]}
51... exf2 {[%clk 0:00:03.7]} 52. Kxf2 {[%clk 0:00:13.6]} 52... Rf8+ {[%clk
0:00:04.2]} 53. Kg2 {[%clk 0:00:14]} 53... Rc2+ {[%clk 0:00:04.4]} 54. Kh3
{[%clk 0:00:12.9]} 54... Rh8+ {[%clk 0:00:03.8]} 55. Kg4 {[%clk 0:00:13.3]}
55... Rc4+ {[%clk 0:00:04.4]} 56. Kxg5 {[%clk 0:00:13.8]} 56... Rg8+ {[%clk
0:00:04.8]} 57. Kh6 {[%clk 0:00:14.5]} 57... Rcg4 {[%clk 0:00:03.1]} 58. Rb5+
{[%clk 0:00:13.6]} 58... Kd4 {[%clk 0:00:03.5]} 59. Rd6+ {[%clk 0:00:09.3]}
59... Kc3 {[%clk 0:00:03.1]} 60. d8=Q {[%clk 0:00:08.9]} 1-0